Cogmind - Beta 10.2 @@@ ROGUE MODE // 2021.03.20 @ 00:40:16 Player: Robbedoes Result: Destroyed by S-27 Virus with Autogun Performance ------------- Evolutions (5) 2500 Regions Visited (16) 3200 Robots Destroyed (145) 725 Value Destroyed (3915) 3915 Prototype IDs (3) 60 Alien Tech Used (0) 0 Bonus (790) 790 TOTAL SCORE: 11190 Bonus ------- High Alert Combat Kills 55 Follower Combat Kills 704 Aligned with FarCom 300 Friendly Fire -269 Cogmind --------- Core Integrity 0/1000 Matter 196/300 Energy 99/100 System Corruption 7% Temperature Cool (1) Movement Flying (40) Location -5/Upper Caves Parts ------- > --- POWER (2) -------- (None) > --- PROPULSION (3) --- Makeshift Flight Unit > --- UTILITY (8) ------ Enhanced Optical Array Improved Core Shielding System Backup Module > --- WEAPON (4) ------- (None) > --- INVENTORY (4) ---- Light Fission Core Precision Assault Rifle Precision Assault Rifle Peak State ------------ > --- POWER ------------ Light Angular Momentum Engine Light Angular Momentum Engine > --- PROPULSION ------- Wheel Wheel > --- UTILITY ---------- High-capacity Storage Unit High-capacity Storage Unit Enhanced Optical Array Advanced Signal Interpreter Core Analyzer Focal Shield Thermal Shield System Guard > --- WEAPON ----------- Improved Arc Projector Flak Gun Heavy Machine Gun Improved Remote Datajack > --- INVENTORY -------- Angular Momentum Engine Light Angular Momentum Engine Fission Core Fission Core Fission Core Focal Shield EM Shield Field Recycling Unit [Rating: 64] Favorites ----------- Power Light Angular Momentum Engine Engine Light Angular Momentum Engine Power Core Fission Core Propulsion Wheel Leg Flexi-carbon Leg Wheel Wheel Flight Unit Field Propulsion Drive Utility High-capacity Storage Unit Device System Backup Module Storage High-capacity Storage Unit Processor Improved Melee Analysis Suite Hackware Hacking Suite Protection Layered Medium Armor Plating Weapon Power Maul Energy Gun Particle Gun Energy Cannon Advanced Beam Cannon Ballistic Gun Light Assault Rifle Ballistic Cannon Heavy Flak Cannon Launcher Proton Missile Launcher Special Weapon Improved Remote Datajack Impact Weapon Power Maul Slashing Weapon Axe Piercing Weapon Spear Build | -11 -10 -10 -10 -9 -8 -7 -6 -6 -6 -6 -6 -5 -5 -5 -5 -5 ------- Run | Scr Mat Min Exi Min Mat Fac Fac Was Fac Ext Cet Fac Was Fac Upp Upp Slots Evolved 10 | . . . . . 4 2 2 . . . . 2 . . . . Power 1 | . . . . . 1 . . . . . . . . . . . Propulsion 1 | . . . . . 1 . . . . . . . . . . . Utility 6 | . . . . . 2 1 1 . . . . 2 . . . . Weapon 2 | . . . . . . 1 1 . . . . . . . . . Parts Attached 134 | 1 11 . 5 1 23 17 27 . 1 13 7 2 6 16 1 3 Power 19 | . 1 . . . 5 3 3 . . 2 1 . 1 3 . . Engine 12 | . 1 . . . 5 1 2 . . 1 1 . 1 . . . Core 7 | . . . . . . 2 1 . . 1 . . . 3 . . Reactor . | . . . . . . . . . . . . . . . . . Propulsion 40 | . 4 . . . 8 8 8 . 1 1 3 . 1 4 1 1 Treads . | . . . . . . . . . . . . . . . . . Leg 4 | . . . . . . . 3 . . . . . . . 1 . Wheel 31 | . 4 . . . 8 8 5 . 1 1 3 . 1 . . . Hover . | . . . . . . . . . . . . . . . . . Flight 5 | . . . . . . . . . . . . . . 4 . 1 Utility 36 | . 2 . 3 . 4 3 7 . . 5 . 2 2 6 . 2 Device 13 | . . . . . . 2 2 . . 2 . . 1 5 . 1 Storage 6 | . 2 . 3 . . . . . . . . . 1 . . . Processor 8 | . . . . . 3 1 1 . . 2 . 1 . . . . Hackware 1 | . . . . . 1 . . . . . . . . . . . Protection 8 | . . . . . . . 4 . . 1 . 1 . 1 . 1 Artifact . | . . . . . . . . . . . . . . . . . Weapon 39 | 1 4 . 2 1 6 3 9 . . 5 3 . 2 3 . . Energy Gun 5 | 1 1 . . . . . . . . . 2 . . 1 . . Energy Cannon 6 | . . . 1 . 2 . 2 . . . 1 . . . . . Ballistic Gun 6 | . 2 . 1 . . . . . . . . . 2 1 . . Ballistic Cannon 2 | . . . . . . . . . . 2 . . . . . . Launcher 7 | . . . . 1 . . 4 . . 2 . . . . . . Special Weapon 2 | . . . . . . . . . . 1 . . . 1 . . Impact Weapon 8 | . . . . . 3 3 2 . . . . . . . . . Slashing Weapon 2 | . 1 . . . 1 . . . . . . . . . . . Piercing Weapon 1 | . . . . . . . 1 . . . . . . . . . Special Melee Weapon . | . . . . . . . . . . . . . . . . . Unidentified Prototypes 3 | . . . 1 . 1 . . . . . . . . 1 . . Parts Lost 71 | . 6 . . . . 13 14 . 1 6 7 . 6 15 . 3 Power 13 | . 1 . . . . 4 2 . . 2 1 . . 3 . . Propulsion 22 | . 1 . . . . 6 4 . 1 1 3 . 1 4 . 1 Utility 16 | . . . . . . 1 4 . . 2 . . 3 4 . 2 Weapon 20 | . 4 . . . . 2 4 . . 1 3 . 2 4 . . Highest Loss Streak 9 | . 2 . . . . 5 6 . 1 3 7 . 6 9 . 3 Average Slot Usage (%) 93 | . 97 100 100 100 100 97 87 100 99 99 86 94 69 68 24 24 Engine 9 | . 14 14 14 14 18 5 5 6 6 6 6 11 9 7 . . Core 3 | . . . . . . 9 5 6 6 6 3 . . . . . Wheel 20 | . 27 28 28 28 27 21 13 20 19 19 20 17 11 7 . . Device 4 | . . . . . . 6 4 6 6 6 13 11 5 12 11 6 Storage 16 | . 27 28 28 28 18 15 13 13 13 13 13 11 9 8 . . Processor 9 | . . . . . 16 15 5 . . 10 13 14 17 15 11 8 Protection 4 | . . . . . . . 14 20 20 7 . 2 2 . . 2 Energy Gun 1 | . 13 . . . . . . . . . . 11 3 2 . . Energy Cannon 2 | . . . . . 1 . 8 6 6 1 . 5 3 . . . Ballistic Gun 2 | . 11 14 13 2 . . . . . . . . 1 8 . . Launcher 5 | . . . . 11 . . 6 20 20 19 8 . . . . . Impact Weapon 4 | . . . . . 10 15 4 . . . . . . . . . Slashing Weapon 3 | . 2 14 14 14 5 7 . . . . . . . . . . Naked Turns . | . . . . . . . . . . . . . . . . . Heaviest Build 124 | 13 42 38 70 72 87 90 124 121 121 121 113 116 116 104 2 3 Greatest Support 42 | 20 26 26 26 26 42 42 36 30 30 30 30 30 30 20 3 8 Greatest Overweight (x) 29 | . 1 1 2 2 3 8 11 4 6 5 4 3 5 29 . . Average Overweight (x) 2 | . . 1 1 2 1 2 4 4 4 3 2 3 3 2 . . Largest Inventory Capacity 20 | 6 16 16 20 20 20 20 20 20 20 20 20 20 20 20 4 4 Average Capacity 18 | 6 15 16 16 20 20 20 20 20 20 20 20 20 17 15 4 4 Most Carried 20 | 6 15 15 17 19 20 20 18 14 17 20 20 16 14 10 4 4 Average Carried 15 | 6 10 15 15 17 19 19 12 14 15 16 18 14 12 6 4 3 Final Capacity 20 | 6 16 16 20 20 20 20 20 20 20 20 20 20 20 4 4 4 Final Carried 20 | 6 15 15 16 19 20 19 14 14 16 20 13 14 6 4 4 3 Class Distribution -------------------- 51% | Hauler-Mutant 23% | Scavenger-Mutant 19% | Mutant 3% | Hauler-Tank Dominant Class ---------------- Mutant | -10/Materials Mutant | -10/Mines Mutant | -10/Exiles Hauler-Mutant | -9/Mines Scavenger-Mutant | -8/Materials Hauler-Mutant | -7/Factory Hauler-Mutant | -6/Factory Hauler-Mutant | -6/Waste Hauler-Mutant | -6/Factory Hauler-Mutant | -6/Extension Hauler-Mutant | -6/Cetus Scavenger-Mutant | -5/Factory Mutant | -5/Waste Hauler-Mutant | -5/Factory Mutant | -5/Upper Caves Mutant | -5/Upper Caves Resources | -11 -10 -10 -10 -9 -8 -7 -6 -6 -6 -6 -6 -5 -5 -5 -5 -5 ----------- Run | Scr Mat Min Exi Min Mat Fac Fac Was Fac Ext Cet Fac Was Fac Upp Upp Matter Collected 2177 | 210 271 . . 61 230 155 415 6 17 573 . 64 . 53 20 102 Remotely . | . . . . . . . . . . . . . . . . . Salvage Created 5749 | . 936 . . 60 1503 1062 1425 . 60 578 18 107 . . . . Parts 262 | . 55 . . 2 69 35 66 . 3 29 2 1 . . . . Haulers Intercepted 6 | . 2 . . . 3 1 . . . . . . . . . . Recyclers Shooed 5 | . 2 . . . 1 . 1 . . 1 . . . . . . Parts Field Recycled . | . . . . . . . . . . . . . . . . . Retrieved Matter . | . . . . . . . . . . . . . . . . . Parts Self-Destructed . | . . . . . . . . . . . . . . . . . Prevented . | . . . . . . . . . . . . . . . . . Kills | -11 -10 -10 -10 -9 -8 -7 -6 -6 -6 -6 -6 -5 -5 -5 -5 -5 ------- Run | Scr Mat Min Exi Min Mat Fac Fac Was Fac Ext Cet Fac Was Fac Upp Upp Combat Hostiles Destroyed 71 | . 11 . . . 19 12 20 . . 9 . . . . . . Melee 33 | . 3 . . . 16 5 9 . . . . . . . . . Guns 8 | . 8 . . . . . . . . . . . . . . . Cannons 6 | . . . . . . . 2 . . 4 . . . . . . AOE 11 | . . . . . . . 7 . . 4 . . . . . . Classes Destroyed 15 | . 7 . . . 6 1 . . . 1 . . . . . . Worker 22 | . 7 . . . 4 5 6 . . . . . . . . . Builder 12 | . . . . . 3 3 4 . 1 1 . . . . . . Tunneler 2 | . . . . . 1 1 . . . . . . . . . . Hauler 6 | . 2 . . . 3 1 . . . . . . . . . . Recycler 14 | . 3 . . 1 3 3 2 . . 1 . 1 . . . . Mechanic 2 | . . . . . 1 1 . . . . . . . . . . Operator 4 | . 2 . . . 1 . 1 . . . . . . . . . Watcher 11 | . 3 . . . 2 2 2 . . 1 1 . . . . . Swarmer 15 | . 3 . . . 3 4 5 . . . . . . . . . Grunt 40 | . 8 . . . 13 4 11 . . 4 . . . . . . Brawler 2 | . . . . . 1 . 1 . . . . . . . . . Sentry 4 | . . . . . 1 1 . . . 2 . . . . . . Hunter 4 | . . . . . 1 1 1 . . 1 . . . . . . Programmer 4 | . . . . . . 2 2 . . . . . . . . . Behemoth 1 | . . . . . . . . . . 1 . . . . . . Thug 2 | . . . . . . . . . 1 1 . . . . . . Best Kill Streak 7 | . 6 . . 1 4 5 7 . 1 3 1 1 . . . . Combat Bots Only 6 | . 3 . . . 4 4 6 . . 2 . . . . . . Max Kills in Single Turn 3 | . 2 . . 1 1 1 3 . 2 2 1 1 . . . . Gunslinging . | . . . . . . . . . . . . . . . . . Exploded 2 | . . . . . . . 2 . . 1 . . . . . . Melee 1 | . 1 . . . 1 1 1 . . . . . . . . . Uniques/NPCs Destroyed . | . . . . . . . . . . . . . . . . . Combat | -11 -10 -10 -10 -9 -8 -7 -6 -6 -6 -6 -6 -5 -5 -5 -5 -5 -------- Run | Scr Mat Min Exi Min Mat Fac Fac Was Fac Ext Cet Fac Was Fac Upp Upp Damage Taken 8853 | . 703 . . . 359 1513 2666 . 132 512 460 20 169 1871 . 448 Core 1976 | . 147 . . . 63 311 409 . . 37 . . 33 776 . 200 Absorbed by Shields 42 | . . . . . . . . . . 42 . . . . . . Core Remaining (%) 66 | 100 . . . 41 88 55 . . . . 47 . . . . . Volleys Fired 182 | . 81 1 . . . . 37 . . 48 3 5 . 7 . . Largest 4 | . 2 1 . . . . 4 . . 4 2 1 . 2 . . Hottest 194 | . 85 20 . . . . 194 . . 176 92 90 . 65 . . Shots Fired 281 | . 157 1 . . . . 49 . 2 54 4 5 . 9 . . Gun 167 | . 157 1 . . . . . . . . . . . 9 . . Cannon 91 | . . . . . . . 40 . . 43 3 5 . . . . Launcher 23 | . . . . . . . 9 . 2 11 1 . . . . . Special . | . . . . . . . . . . . . . . . . . Kinetic 109 | . 58 1 . . . . . . . 39 3 . . 8 . . Thermal 80 | . 38 . . . . . 33 . . 4 . 5 . . . . Explosive 11 | . . . . . . . 8 . . 3 . . . . . . Electromagnetic 81 | . 61 . . . . . 8 . 2 8 1 . . 1 . . Robot Hit Streak 10 | . 10 . . . . . 8 . 8 6 2 4 . 3 . . Robot Miss Streak 7 | . 5 . . . . . 2 . . 4 1 2 . 7 . . Penetration Max . | . . . . . . . . . . . . . . . . . Secondary Targets 2 | . 2 . . . . . . . . . . . . . . . Max Gunslinging Chain 1 | . 1 . . . . . . . . . . . . . . . Shots Hit Robots 355 | . 95 . . 3 65 73 68 . 2 36 3 3 . 7 . . Core Hits 185 | . 41 . . 1 29 11 51 . 3 39 2 2 . 6 . . Critical Hits 12 | . . . . . 3 . 8 . . 1 . . . . . . Critical Kills 5 | . . . . . 2 . 3 . . . . . . . . . Critical Parts Destroyed 7 | . . . . . 1 . 5 . . 1 . . . . . . Melee Attacks 265 | . 3 1 . 3 115 94 49 . . . . . . . . . Impact 161 | . . . . . 60 82 19 . . . . . . . . . Slashing 74 | . 3 1 . 3 55 12 . . . . . . . . . . Piercing 30 | . . . . . . . 30 . . . . . . . . . Sneak Attacks 49 | . 3 . . 3 22 17 4 . . . . . . . . . Combat Hostiles 5 | . . . . . 4 . 1 . . . . . . . . . Follow-up Attacks 34 | . . . . . 6 17 11 . . . . . . . . . Damage Inflicted 15820 | . 1377 . . 151 4025 3781 4128 . 307 1598 220 129 . 104 . . Guns 1187 | . 1083 . . . . . . . . . . . . 104 . . Cannons 1494 | . . . . . . . 497 . . 771 97 129 . . . . Explosions 3443 | . 38 . . . . 89 2059 . 307 827 123 . . . . . Melee 9655 | . 215 . . 151 4025 3692 1572 . . . . . . . . . Ramming 41 | . 41 . . . . . . . . . . . . . . . Kinetic 1126 | . 231 . . . . . . . . 710 97 . . 88 . . Thermal 1637 | . 393 . . . . . 966 . . 149 . 129 . . . . Explosive 1136 | . . . . . . 89 664 . 215 168 . . . . . . Electromagnetic 2225 | . 497 . . . . . 926 . 92 571 123 . . 16 . . Impact 5190 | . . . . . 1336 3273 581 . . . . . . . . . Slashing 3474 | . 215 . . 151 2689 419 . . . . . . . . . . Piercing 991 | . . . . . . . 991 . . . . . . . . . Highest Corruption 30 | . . . . . . . 30 30 28 28 24 . 8 8 7 7 Average Corruption 19 | . . . . . . . 15 29 28 25 24 . 8 7 7 7 Corruption Purged 10 | . . . . . . . 3 2 . 4 . . . 1 . . Effects 226 | . . . . . . . 58 10 17 117 4 . 3 11 3 3 Message Errors 32 | . . . . . . . 11 1 . 18 . . . 1 . 1 Matter Fused 41 | . . . . . . . 9 2 5 16 1 . 1 4 3 . Heat Flow Errors 21 | . . . . . . . 5 1 1 10 1 . 2 . . 1 Energy Discharges 21 | . . . . . . . 4 1 1 12 . . . 3 . . Parts Rejected 3 | . . . . . . . 1 . . 1 . . . 1 . . Data Loss (minor) 13 | . . . . . . . 5 1 . 6 1 . . . . . Data Loss (major) 8 | . . . . . . . 3 1 . 3 . . . . . 1 Misfires 6 | . . . . . . . 2 . 2 2 . . . . . . Alerts 3 | . . . . . . . 1 . . 2 . . . . . . Misdirections 47 | . . . . . . . 9 3 7 28 . . . . . . Targeting Errors 24 | . . . . . . . 8 . 1 13 1 . . 1 . . Weapon Failures 7 | . . . . . . . . . . 6 . . . 1 . . Overload Shots . | . . . . . . . . . . . . . . . . . Overflow Damage 2731 | . . . . 44 821 1317 517 . 12 16 . 4 . . . . Projectiles 7 | . . . . . . . 3 . . . . 4 . . . . Explosions 465 | . . . . . . 113 324 . 12 16 . . . . . . Melee 2259 | . . . . 44 821 1204 190 . . . . . . . . . Knockbacks 32 | . . . . . 9 14 1 . . 8 . . . . . . Impact 23 | . . . . . 8 14 1 . . . . . . . . . Kinetic 8 | . . . . . . . . . . 8 . . . . . . Secondary 1 | . . . . . 1 . . . . . . . . . . . Self-Inflicted Damage 1229 | . 31 . . . . 198 825 . 133 42 . . . . . . Shots 26 | . 1 . . . . 2 16 . 3 4 . . . . . . Rammed 6 | . 6 . . . . . . . . . . . . . . . Targets Rammed 6 | . 6 . . . . . . . . . . . . . . . Kicked . | . . . . . . . . . . . . . . . . . Crushed . | . . . . . . . . . . . . . . . . . Highest Temperature 492 | . 312 . . . . 3 492 105 180 250 189 4 93 12 . 86 Average Temperature 94 | . 86 . . . . 3 122 55 72 67 97 2 54 9 . 46 Received Heat Transfer 1458 | . 303 . . . 180 159 492 . . 198 36 9 . 54 . 27 Effects 8 | . . . . . . . 7 . . 1 . . . . . . Shutdowns 3 | . . . . . . . 3 . . . . . . . . . Energy Bleed 1 | . . . . . . . . . . 1 . . . . . . Interference 3 | . . . . . . . 3 . . . . . . . . . Short Circuit 1 | . . . . . . . 1 . . . . . . . . . Siege Activations . | . . . . . . . . . . . . . . . . . Robots Corrupted 3 | . . . . . . . 2 . . 1 . . . . . . Combat Hostiles 3 | . . . . . . . 2 . . 1 . . . . . . Parts Fried 47 | . 2 . . . 12 21 10 . . 2 . . . . . . Impact Corruptions 64 | . . . . . 18 41 5 . . . . . . . . . Robots Melted . | . . . . . . . . . . . . . . . . . Combat Hostiles . | . . . . . . . . . . . . . . . . . Parts Melted 4 | . 1 . . . . . 1 . . 1 . 1 . . . . Heat Transferred 2476 | . 951 . . . . . 1064 . . 261 . 200 . . . . Parts Sabotaged . | . . . . . . . . . . . . . . . . . Parts Stolen . | . . . . . . . . . . . . . . . . . Parts Stripped . | . . . . . . . . . . . . . . . . . Power Chain Reactions 4 | . 1 . . . . . 2 . . 1 . . . . . . Missiles Intercepted . | . . . . . . . . . . . . . . . . . Latent Energy Used 1318 | . . . . . . . 1318 . . . . . . . . . LE Corruption 20 | . . . . . . . 20 . . . . . . . . . Alert | -11 -10 -10 -10 -9 -8 -7 -6 -6 -6 -6 -6 -5 -5 -5 -5 -5 ------- Run | Scr Mat Min Exi Min Mat Fac Fac Was Fac Ext Cet Fac Was Fac Upp Upp Peak Influence 840 | . 273 53 . 5 402 327 840 254 221 311 174 134 46 45 . . Initial 254 | . . 53 . . 1 182 159 254 177 107 173 86 46 . . . Average 170 | . 138 53 . 1 148 190 363 254 209 140 160 111 25 4 . . Maximum Alert Level 3 | . 1 . . . 2 1 3 1 1 1 . . . . . . Low Security (%) 64 | 100 87 100 . 100 58 62 15 . 26 78 100 100 100 100 . . Level 1 31 | . 12 . . . 41 37 60 100 73 21 . . . . . . Level 2 1 | . . . . . . . 9 . . . . . . . . . Level 3 2 | . . . . . . . 14 . . . . . . . . . Level 4 . | . . . . . . . . . . . . . . . . . Level 5 . | . . . . . . . . . . . . . . . . . High Security . | . . . . . . . . . . . . . . . . . Max Security . | . . . . . . . . . . . . . . . . . Squads Dispatched 23 | . 2 . . . 3 4 6 . . 6 . . . 2 . . Investigation 3 | . . . . . . . . . . 2 . . . 1 . . Extermination 4 | . . . . . . 2 2 . . . . . . . . . Reinforcement 15 | . 2 . . . 3 2 3 . . 4 . . . 1 . . Assault 1 | . . . . . . . 1 . . . . . . . . . Garrison . | . . . . . . . . . . . . . . . . . Intercept . | . . . . . . . . . . . . . . . . . Construction Impeded 4 | . . . . . 1 . 1 . . 2 . . . . . . Haulers Reinforced 2 | . . . . . . 1 1 . . . . . . . . . Stealth | -11 -10 -10 -10 -9 -8 -7 -6 -6 -6 -6 -6 -5 -5 -5 -5 -5 --------- Run | Scr Mat Min Exi Min Mat Fac Fac Was Fac Ext Cet Fac Was Fac Upp Upp Distress Signals 7 | . 2 . . . 1 1 . . . 2 1 . . . . . Communications Jammed . | . . . . . . . . . . . . . . . . . Distress Signals . | . . . . . . . . . . . . . . . . . Times Spotted 167 | . 22 . . . 31 24 26 . . 28 5 5 6 8 . 12 Peak Tracking Total 8 | . 4 . . . 4 5 5 . . 6 5 5 6 8 . 6 Tactical Retreats 18 | . 3 . . . 5 1 2 . . 4 . . . 1 . 2 Traps | -11 -10 -10 -10 -9 -8 -7 -6 -6 -6 -6 -6 -5 -5 -5 -5 -5 ------- Run | Scr Mat Min Exi Min Mat Fac Fac Was Fac Ext Cet Fac Was Fac Upp Upp Traps Triggered 9 | . . . . . . 2 3 . . 1 . 1 . 2 . . Indirectly 1 | . . . . . . . 1 . . . . . . . . . Trap Hack Attempts . | . . . . . . . . . . . . . . . . . Triggered . | . . . . . . . . . . . . . . . . . Disarmed . | . . . . . . . . . . . . . . . . . Reprogrammed . | . . . . . . . . . . . . . . . . . Reused . | . . . . . . . . . . . . . . . . . Traps Extracted . | . . . . . . . . . . . . . . . . . Installed . | . . . . . . . . . . . . . . . . . Triggered . | . . . . . . . . . . . . . . . . . Machines | -11 -10 -10 -10 -9 -8 -7 -6 -6 -6 -6 -6 -5 -5 -5 -5 -5 ---------- Run | Scr Mat Min Exi Min Mat Fac Fac Was Fac Ext Cet Fac Was Fac Upp Upp Machines Disabled 27 | . 4 . . . . 3 18 . 1 1 . . . . . . Max in Single Turn 4 | . 1 . . . . 2 4 . 1 1 . . . . . . Garrison Access 2 | . . . . . . . 1 . . . . 1 . . . . Machines Sabotaged . | . . . . . . . . . . . . . . . . . Garrisons Compromised . | . . . . . . . . . . . . . . . . . Overloaded Fab Kills . | . . . . . . . . . . . . . . . . . Fab Network Shutdowns . | . . . . . . . . . . . . . . . . . Hacking | -11 -10 -10 -10 -9 -8 -7 -6 -6 -6 -6 -6 -5 -5 -5 -5 -5 --------- Run | Scr Mat Min Exi Min Mat Fac Fac Was Fac Ext Cet Fac Was Fac Upp Upp Machines Accessed 24 | . 4 . . . 3 3 2 . 1 7 . 3 . 1 . . Terminals 19 | . 4 . . . 3 1 2 . 1 7 . 1 . . . . Fabricators 2 | . . . . . . 2 . . . . . . . . . . Repair Stations 1 | . . . . . . . . . . . . 1 . . . . Recycling Units 1 | . . . . . . . . . . . . . . 1 . . Scanalyzers . | . . . . . . . . . . . . . . . . . Garrison Access 1 | . . . . . . . . . . . . 1 . . . . Total Hacks 62 | . 13 . . . 9 8 8 . 3 13 . 6 . 2 . . Successful 34 | . 6 . . . 7 6 5 . 1 6 . 3 . . . . Failed 28 | . 7 . . . 2 2 3 . 2 7 . 3 . 2 . . Catastrophic 4 | . . . . . . . . . 1 2 . . . 1 . . Database Lockouts . | . . . . . . . . . . . . . . . . . Manual 2 | . . . 1 1 . . . . . . . . . . . . Terminals 52 | . 13 . . . 9 3 8 . 3 13 . 3 . . . . Fabricators 5 | . . . . . . 5 . . . . . . . . . . Repair Stations 1 | . . . . . . . . . . . . 1 . . . . Recycling Units 2 | . . . . . . . . . . . . . . 2 . . Scanalyzers . | . . . . . . . . . . . . . . . . . Garrison Access 2 | . . . . . . . . . . . . 2 . . . . Terminal Hacks 29 | . 6 . . . 7 2 5 . 1 6 . 2 . . . . Record 4 | . . . . . 1 1 . . . 1 . 1 . . . . Open Door 4 | . . . . . . . . . . 4 . . . . . . Level Access Points 1 | . . . . . . . . . . . . 1 . . . . Emergency Access Points 2 | . 1 . . . . . 1 . . . . . . . . . Terminal Index 1 | . . . . . . . 1 . . . . . . . . . Alert Level 1 | . . . . . . . . . 1 . . . . . . . Locate Traps 2 | . 1 . . . 1 . . . . . . . . . . . Dispatch Records 1 | . . . . . 1 . . . . . . . . . . . Maintenance Status 3 | . 2 . . . 1 . . . . . . . . . . . Surveillance Status 1 | . . . . . 1 . . . . . . . . . . . Transport Status 1 | . 1 . . . . . . . . . . . . . . . Reinforcement Status 1 | . . . . . . . 1 . . . . . . . . . Recall Investigation 1 | . . . . . . 1 . . . . . . . . . . Hauler Manifests 3 | . 1 . . . . . 1 . . 1 . . . . . . Zone Layout 3 | . . . . . 2 . 1 . . . . . . . . . Fabricator Hacks 4 | . . . . . . 4 . . . . . . . . . . Network Status 2 | . . . . . . 2 . . . . . . . . . . Build 2 | . . . . . . 2 . . . . . . . . . . Repair Station Hacks . | . . . . . . . . . . . . . . . . . Recycling Unit Hacks . | . . . . . . . . . . . . . . . . . Scanalyzer . | . . . . . . . . . . . . . . . . . Garrison Access Hacks 1 | . . . . . . . . . . . . 1 . . . . Seal Access 1 | . . . . . . . . . . . . 1 . . . . Unauthorized Hacks . | . . . . . . . . . . . . . . . . . Terminals . | . . . . . . . . . . . . . . . . . Fabricators . | . . . . . . . . . . . . . . . . . Repair Stations . | . . . . . . . . . . . . . . . . . Recycling Units . | . . . . . . . . . . . . . . . . . Scanalyzers . | . . . . . . . . . . . . . . . . . Garrison Access . | . . . . . . . . . . . . . . . . . Data Cores Recovered . | . . . . . . . . . . . . . . . . . Used . | . . . . . . . . . . . . . . . . . Hacking Detections 17 | . 3 . . 1 2 3 1 . 1 3 . 2 . 1 . . Full Trace Events 2 | . . . . . . . . . . 2 . . . . . . Feedback Events . | . . . . . . . . . . . . . . . . . Feedback Blocked . | . . . . . . . . . . . . . . . . . Robot Schematics Acquired . | . . . . . . . . . . . . . . . . . Robots Built . | . . . . . . . . . . . . . . . . . Matter . | . . . . . . . . . . . . . . . . . Time . | . . . . . . . . . . . . . . . . . Total Robot Build Rating . | . . . . . . . . . . . . . . . . . Part Schematics Acquired . | . . . . . . . . . . . . . . . . . Parts Built 2 | . . . . . . 2 . . . . . . . . . . Matter 380 | . . . . . . 380 . . . . . . . . . . Time 137 | . . . . . . 137 . . . . . . . . . . Total Part Build Rating 12 | . . . . . . 12 . . . . . . . . . . Parts Repaired . | . . . . . . . . . . . . . . . . . Time . | . . . . . . . . . . . . . . . . . Parts Recycled . | . . . . . . . . . . . . . . . . . Recycled Matter . | . . . . . . . . . . . . . . . . . Retrieved Matter . | . . . . . . . . . . . . . . . . . Retrieved Components . | . . . . . . . . . . . . . . . . . Parts Scanalyzed . | . . . . . . . . . . . . . . . . . Part Schematics Acquired . | . . . . . . . . . . . . . . . . . Parts Damaged . | . . . . . . . . . . . . . . . . . Bothacking | -11 -10 -10 -10 -9 -8 -7 -6 -6 -6 -6 -6 -5 -5 -5 -5 -5 ------------ Run | Scr Mat Min Exi Min Mat Fac Fac Was Fac Ext Cet Fac Was Fac Upp Upp Used RIF Installer . | . . . . . . . . . . . . . . . . . Robots Hacked . | . . . . . . . . . . . . . . . . . Non-combat . | . . . . . . . . . . . . . . . . . Combat . | . . . . . . . . . . . . . . . . . Robot Hacks Applied . | . . . . . . . . . . . . . . . . . Relay Couplers Released 1 | . . . . . . . 1 . . . . . . . . . Machine Destruction 1 | . . . . . . . 1 . . . . . . . . . Robots Rewired 1 | . . . . . . . . . . 1 . . . . . . Allies Hacked . | . . . . . . . . . . . . . . . . . Hacks Repelled . | . . . . . . . . . . . . . . . . . Allies | -11 -10 -10 -10 -9 -8 -7 -6 -6 -6 -6 -6 -5 -5 -5 -5 -5 -------- Run | Scr Mat Min Exi Min Mat Fac Fac Was Fac Ext Cet Fac Was Fac Upp Upp Total Allies 11 | . . . . 3 . . . 1 . 7 . . . . . . Largest Group 3 | . . . . 3 . . . 1 1 3 2 . . . . . Highest-Rated Group 105 | . . . . 40 . . . 31 31 105 64 . . . . . Highest-Rated Ally 37 | . . . . 16 . . . 31 31 37 32 . . . . . Total Orders 3 | . . . . 3 . . . . . . . . . . . . ROAM 3 | . . . . 3 . . . . . . . . . . . . Ally Attacks 130 | . . . . 3 . . . . . 114 13 . . . . . Total Damage 1770 | . . . . 48 . . . . . 1576 146 . . . . . Kills 17 | . . . . 1 . . . . . 13 3 . . . . . Allies Corrupted . | . . . . . . . . . . . . . . . . . Allies Melted . | . . . . . . . . . . . . . . . . . Intel | -11 -10 -10 -10 -9 -8 -7 -6 -6 -6 -6 -6 -5 -5 -5 -5 -5 ------- Run | Scr Mat Min Exi Min Mat Fac Fac Was Fac Ext Cet Fac Was Fac Upp Upp Robot Analysis Total . | . . . . . . . . . . . . . . . . . Derelict Logs Recovered 4 | . . 2 . 1 . . . . . . . . . . 1 . Drone Launches . | . . . . . . . . . . . . . . . . . Drone Recoveries . | . . . . . . . . . . . . . . . . . Exploration | -11 -10 -10 -10 -9 -8 -7 -6 -6 -6 -6 -6 -5 -5 -5 -5 -5 ------------- Run | Scr Mat Min Exi Min Mat Fac Fac Was Fac Ext Cet Fac Was Fac Upp Upp Turns Passed 8688 | 3 1004 113 251 261 1795 1157 1251 135 180 1448 74 212 97 503 123 81 Spaces Moved 6194 | 2 665 109 239 224 938 802 723 112 146 1078 53 177 79 473 220 154 Core 462 | . . . . . . . . . . . . . . 107 220 135 Treads . | . . . . . . . . . . . . . . . . . Legs 76 | 2 15 . . . . . 59 . . . . . . . . . Wheels 5530 | . 650 109 239 224 938 802 664 112 146 1078 53 177 79 259 . . Hover . | . . . . . . . . . . . . . . . . . Flight 126 | . . . . . . . . . . . . . . 107 . 19 Fastest Speed 37 | 120 90 100 100 110 96 106 110 120 120 110 100 110 100 37 50 40 Average Speed 106 | 120 99 100 101 110 104 109 137 120 120 110 105 110 116 90 50 48 Slowest Speed 1500 | 120 120 100 110 110 113 160 270 120 140 130 120 110 130 1500 50 50 Overloaded Moves . | . . . . . . . . . . . . . . . . . Propulsion Burnouts . | . . . . . . . . . . . . . . . . . Robots Hopped . | . . . . . . . . . . . . . . . . . Cave-ins Triggered 1 | . . . . . . . 1 . . . . . . . . . Exploration Rate (%) 37 | 2 50 30 61 38 36 16 21 74 5 69 23 5 95 15 56 44 Regions Visited 16 Branch Regions 7 Pre-discovered Areas . | . . . . . . . . . . . . . . . . . Known Exits Taken 3 | . . . . . . . . . . 1 1 . . . 1 . Unknown Exits Taken 9 | 1 1 1 1 1 1 1 . . 1 . . . . 1 . . Scrap Searched 6 | . . 1 . . . . . . . . . . . . 2 3 Spaces Dug 46 | . . . . . 31 5 10 . . . . . . . . . Terrain Destroyed 482 | . 3 . . . 31 42 306 . 47 52 . 1 . . . . Melee 36 | . . . . . 31 5 . . . . . . . . . . Projectile 9 | . . . . . . . 2 . . 6 . 1 . . . . AOE 437 | . 3 . . . . 37 304 . 47 46 . . . . . . Terrain Rammed . | . . . . . . . . . . . . . . . . . Walls Destroyed . | . . . . . . . . . . . . . . . . . Machines Disabled . | . . . . . . . . . . . . . . . . . Actions | -11 -10 -10 -10 -9 -8 -7 -6 -6 -6 -6 -6 -5 -5 -5 -5 -5 --------- Run | Scr Mat Min Exi Min Mat Fac Fac Was Fac Ext Cet Fac Was Fac Upp Upp Total 7698 | 2 841 110 247 232 1597 966 892 112 150 1278 66 190 84 540 231 160 Wait 769 | . 49 . . 3 500 56 38 1 1 88 4 3 . 15 11 . Move 6180 | 1 664 108 238 223 937 801 723 111 145 1077 52 177 78 472 219 154 Hop . | . . . . . . . . . . . . . . . . . Pick Up 123 | . 21 . 2 2 19 14 25 . 3 16 . 3 . 17 . 1 Fast Attach 9 | . 1 . . . 2 . . . . . . . . 4 1 1 Attach 88 | . 6 . . . 6 11 27 . 1 8 7 2 6 12 . 2 Detach 4 | . . . . . . . . . . . . . . 3 . 1 Swap 37 | 1 4 . 5 1 15 6 . . . 5 . . . . . . Drop 63 | . 6 . 2 . 24 6 9 . . 5 . . . 10 . 1 Fire 182 | . 81 1 . . . . 37 . . 48 3 5 . 7 . . Melee 206 | . 3 1 . 3 94 72 33 . . . . . . . . . Ram 6 | . 6 . . . . . . . . . . . . . . . Kick . | . . . . . . . . . . . . . . . . . Crush . | . . . . . . . . . . . . . . . . . Escape Stasis 4 | . . . . . . . . . . 4 . . . . . . Rewire 27 | . . . . . . . . . . 27 . . . . . . Trap . | . . . . . . . . . . . . . . . . . Miscellaneous . | . . . . . . . . . . . . . . . . . Route ------- -11/Scrapyard -10/Materials (discovered 2 exits: [*Mat] / [*Min]) -10/Mines -10/Exiles -9/Mines -8/Materials -7/Factory -6/Factory -6/Waste -6/Factory -6/Extension (discovered 2 exits: *Fac / *Cet) -6/Cetus -5/Factory (discovered 4 exits: Fac x4) -5/Waste -5/Factory -5/Upper Caves -5/Upper Caves History --------- Turn | Location | Event 3 | -11/Scrapyard | Discovered new exit (range 1) 4 | -11/Scrapyard | Entered Materials 305 | -10/Materials | Build established: Mutant 481 | -10/Materials | Discovered new exit (range 15) 618 | -10/Materials | Discovered new exit (range 12) 794 | -10/Materials | Core integrity fell below 50% 1008 | -10/Materials | Entered Mines 1081 | -10/Mines | Learned Materials terminal intel 1094 | -10/Mines | Learned Materials terminal intel 1117 | -10/Mines | Discovered new exit (range 3) 1121 | -10/Mines | Entered Exiles 1146 | -10/Exiles | Met 8R-AWN 1162 | -10/Exiles | Met EX-HEX 1193 | -10/Exiles | Met EX-BIN 1204 | -10/Exiles | Aligned with FarCom system 1205 | -10/Exiles | Given EX-Vault access code 1232 | -10/Exiles | Opened EX-Vault 1238 | -10/Exiles | Found Prototype Energy Cannon 1239 | -10/Exiles | Identified Latent Energy Streamer 1264 | -10/Exiles | Warned to stay clear of 0b10 Research branches 1293 | -10/Exiles | Met EX-DEC 1359 | -10/Exiles | Discovered new exit (range 11) 1372 | -10/Exiles | Left Exiles lab with Latent Energy Streamer 1372 | -10/Exiles | Entered Mines 1392 | -9/Mines | YI-UF0 nonchalantly dropped a Grenade Launcher on the ground 1547 | -9/Mines | Learned 2 Materials zone layouts 1576 | -9/Mines | Assisted by bots powering up and referring to "LRC-V3" 1619 | -9/Mines | Discovered new exit (range 9) 1625 | -9/Mines | Assembled infested the area 1633 | -9/Mines | Entered Materials 1633 | -8/Materials | Evolved 4 slots: Power x1, Propulsion x1, Utility x2 1635 | -8/Materials | Loaded intel: 12 terminal locations 1924 | -8/Materials | Build established: Scavenger-Mutant 3397 | -8/Materials | Discovered new exit (range 15) 3428 | -8/Materials | Entered Factory 3428 | -7/Factory | Evolved 2 slots: Utility x1, Weapon x1 3798 | -7/Factory | Lost 5 parts (2p3n) 3872 | -7/Factory | Build established: Hauler-Mutant 4498 | -7/Factory | Discovered new exit (range 12) 4541 | -7/Factory | Fabricated Imp. Dynamic Insulation System? 4585 | -7/Factory | Entered another Factory area 4585 | -6/Factory | Evolved 2 slots: Utility x1, Weapon x1 4611 | -6/Factory | Lost 4 parts (1p1n2w) 4910 | -6/Factory | Lost 6 parts (2p1n2u1w) 4938 | -6/Factory | Crushed by falling debris 4938 | -6/Factory | System corruption reached 10% 4971 | -6/Factory | Lost 3 parts (1n1u1w) 5681 | -6/Factory | System corruption reached 30% 5836 | -6/Factory | Sucked down chute 5836 | -6/Factory | Entered Waste 5836 | -6/Waste | The area was eerily silent 5837 | -6/Waste | Met a frightened Derelict 5957 | -6/Waste | Discovered new exit (range 10) 5971 | -6/Waste | Entered Factory 5971 | -6/Factory | Accompanied by 1 ally 6139 | -6/Factory | Discovered new exit (range 11) 6151 | -6/Factory | Entered Extension 6162 | -6/Extension | Disrupted transfer network 6219 | -6/Extension | Lost 3 parts (1n1u1w) 6239 | -6/Extension | Core integrity fell below 50% 6248 | -6/Extension | Rescued a captive Derelict 6248 | -6/Extension | Rescued a captive Derelict 6582 | -6/Extension | Spotted B-75 Beast 6585 | -6/Extension | Rescued a captive Derelict 7008 | -6/Extension | Rescued a captive Derelict 7009 | -6/Extension | Rescued a captive Derelict 7043 | -6/Extension | Rescued a captive Derelict 7322 | -6/Extension | Destroyed B-75 Beast 7342 | -6/Extension | Spotted B-75 Beast 7558 | -6/Extension | Discovered new exit (range 22) 7559 | -6/Extension | Discovered new exit (range 21) 7580 | -6/Extension | Identified exit to Factory 7586 | -6/Extension | Identified exit to Cetus 7599 | -6/Extension | Entered Cetus 7599 | -6/Cetus | Accompanied by 2 allies 7618 | -6/Cetus | Spotted Cetus Guard 7618 | -6/Cetus | Spotted Cetus Guard 7618 | -6/Cetus | Spotted Cetus Guard 7618 | -6/Cetus | Spotted Cetus Guard 7626 | -6/Cetus | Allies destroyed Cetus Guard 7632 | -6/Cetus | Allies destroyed Cetus Guard 7648 | -6/Cetus | Discovered exit to Factory (range 22) 7673 | -6/Cetus | Entered Factory 7673 | -5/Factory | Evolved 2 slots: Utility x2 7675 | -5/Factory | Lost 7 parts (1p3n3w) 7743 | -5/Factory | Identified exit to Factory 7885 | -5/Factory | Sucked down chute 7885 | -5/Factory | Entered Waste 7894 | -5/Waste | Spotted C-40 Crusher 7900 | -5/Waste | EMP discharged 7910 | -5/Waste | Spotted C-40 Crusher 7917 | -5/Waste | Spotted C-40 Crusher 7918 | -5/Waste | Crushed by Compactor (1 part destroyed, 2 dropped) 7921 | -5/Waste | Spotted C-40 Crusher 7925 | -5/Waste | Crushed by Compactor (1 part destroyed, 1 dropped) 7929 | -5/Waste | Spotted C-40 Crusher 7947 | -5/Waste | Spotted C-40 Crusher 7949 | -5/Waste | Crushed by Compactor (1 part destroyed, 1 dropped) 7952 | -5/Waste | Crushed by Compactor (1 part destroyed, 1 dropped) 7965 | -5/Waste | Discovered new exit (range 10) 7981 | -5/Waste | Identified exit to Factory 7982 | -5/Waste | Entered Factory 7983 | -5/Factory | Lost 6 parts (1n3u2w) 8327 | -5/Factory | Lost 3 parts (1p1n1w) 8370 | -5/Factory | Core integrity fell below 50% 8409 | -5/Factory | Lost 9 parts (1p1n4u3w) 8444 | -5/Factory | Spotted B-75 Beast 8466 | -5/Factory | Lost 3 parts (1p2n) 8476 | -5/Factory | Core integrity fell below 20% 8482 | -5/Factory | Discovered new exit (range 7) 8485 | -5/Factory | Entered Upper Caves 8572 | -5/Upper Caves | Identified exit to Upper Caves 8608 | -5/Upper Caves | Entered another Upper Caves area 8649 | -5/Upper Caves | Attracted the attention of an 0b10 checkpoint 8666 | -5/Upper Caves | Build established: Mutant 8689 | -5/Upper Caves | Destroyed by S-27 Virus with Autogun Last Messages --------------- 08650_ Slug penetrates Wall. 08651_ Core Analyzer destroyed. 08652_ Acquired 50 matter. 08653_ Penetrated by Slug. 08658_ Slug penetrates Wall. 08670_ Flexi-carbon Leg destroyed. 08673_ Searching scrap... 08673_ Found 14 Matter. 08673_ Found 18 Matter. 08674_ Acquired 18 matter. 08674_ Acquired 14 matter. 08679_ Searching scrap... 08679_ Found Imp. Melee Analysis Suite. 08679_ Found Mak. Flight Unit. 08679_ Found Shock Absorption System. 08679_ Found 20 Matter. 08680_ Acquired Mak. Flight Unit. 08682_ Acquired 20 matter. 08688_ E&J 9PWIVC4,JGK%KY%:|5S1NC